fUSD/lending_fUSD_20250328
["ID","MTS","AMOUNT","RATE_DAILY","PERIOD"]
[356779026,1743166263158,-500.0,0.00045205,120]
[356779027,1743166263168,-500.0,0.00045205,120]
[356779028,1743166263178,-502.31137353,0.00045205,120]
[356779029,1743166263190,-3651.08,0.00045205,120]
[356779030,1743166263200,-994.07,0.00045205,120]
[356779031,1743166263211,-3651.08,0.00045205,120]
[356779032,1743166263223,-994.07,0.00045205,120]
[356779033,1743166263234,-3651.08,0.00045205,120]
[356779034,1743166263244,-994.07,0.00045205,120]
[356779035,1743166263255,-3651.08,0.00045205,120]
[356779036,1743166263265,-994.07,0.00045205,120]
[356779037,1743166263275,-3651.08,0.00045205,120]
[356779038,1743166263284,-994.07,0.00045205,120]
[356779039,1743166263295,-3651.08,0.00045205,120]
[356779040,1743166263305,-994.07,0.00045205,120]
[356779041,1743166263315,-3651.08,0.00045205,120]
[356779042,1743166263325,-481.29002918,0.00045205,2]
[356779043,1743166263335,-3651.08,0.00045205,120]
[356779044,1743166263344,-3651.08,0.00045205,120]
[356779045,1743166263354,-994.07,0.00045205,120]
[356779046,1743166263364,-500.0,0.00045205,120]
[356779047,1743166263373,-3651.22500203,0.00045205,120]
[356779048,1743166263383,-994.07,0.00045205,120]
[356779049,1743166263393,-518.9412689,0.00045205,120]
[356779050,1743166263403,-994.2242752,0.00045205,120]
[356779051,1743166263412,-534.25003075,0.00045205,120]
[356779052,1743166263422,-500.0,0.00045205,120]
[356779053,1743166263432,-605.66988422,0.00045205,120]
[356779054,1743166263442,-500.0,0.00045205,120]
[356779055,1743166263452,-497.56286945,0.00045205,120]
[356779056,1743166263462,-500.0,0.00045205,60]
[356779057,1743166263473,-500.0,0.00045205,60]
[356779058,1743166263483,-211.29166966,0.00045205,120]
[356779059,1743166263493,-500.0,0.00045205,120]
[356779060,1743166263503,-500.0,0.00045205,120]
[356779061,1743166263514,-569.08829094,0.00045205,120]
[356779062,1743166263524,-500.0,0.00045205,120]
[356779063,1743166263534,-500.0,0.00045205,120]
[356779064,1743166263543,-507.55763576,0.00045205,120]
[356779065,1743166263553,-500.0,0.00045205,120]
[356779066,1743166263563,-257.2838091,0.00045205,120]
[356779067,1743166263573,-530.29064533,0.00045205,120]
[356779068,1743166263583,-536.35001511,0.00045205,120]
[356779069,1743166263593,-500.0,0.00045205,120]
[356779070,1743166263603,-589.31394307,0.00045205,120]
[356779071,1743166263612,-500.0,0.00045205,120]
[356779072,1743166263622,-500.0,0.00045205,120]
[356779073,1743166263631,-637.73939354,0.00045205,120]
[356779074,1743166263640,-507.06699338,0.00045205,120]
[356779075,1743166263650,-500.0,0.00045205,120]
[356779076,1743166263659,-500.0,0.00045205,120]
[356779077,1743166263669,-538.93056597,0.00045205,120]
[356779078,1743166263679,-500.0,0.00045205,120]
[356779079,1743166263688,-500.0,0.00045205,120]
[356779080,1743166263698,-500.0,0.00045205,120]
[356779081,1743166263708,-434.17536757,0.00045205,120]
[356779082,1743166263718,-500.0,0.00045205,120]
[356779083,1743166263728,-544.97389301,0.00045205,120]
[356779084,1743166263738,-510.10723572,0.00045205,120]
[356779085,1743166263747,-558.07838354,0.00045205,120]
[356779086,1743166263757,-500.0,0.00045205,120]
[356779087,1743166263767,-500.0,0.00045205,120]
[356779088,1743166263777,-500.0,0.00045205,120]
[356779089,1743166263786,-500.0,0.00045205,120]
[356779090,1743166263796,-500.0,0.00045205,120]
[356779091,1743166263805,-500.0,0.00045205,120]
[356779092,1743166263815,-518.90041571,0.00045205,120]
[356779093,1743166263824,-500.0,0.00045205,120]
[356779094,1743166263833,-500.0,0.00045205,120]
[356779095,1743166263842,-500.0,0.00045205,120]
[356779096,1743166263852,-541.37162358,0.00045205,120]
[356779097,1743166263861,-500.0,0.00045205,120]
[356779098,1743166263871,-508.01316367,0.00045205,120]
[356779099,1743166263881,-551.21773389,0.00045205,120]
[356779100,1743166263891,-500.0,0.00045205,120]
[356779101,1743166263901,-505.31916162,0.00045205,120]
[356779102,1743166263910,-500.0,0.00045205,120]
[356779103,1743166263920,-500.0,0.00045205,100]
[356779104,1743166263930,-574.5665484,0.00045205,120]
[356779105,1743166263940,-500.0,0.00045205,100]
[356779106,1743166263950,-500.0,0.00045205,100]
[356779107,1743166263960,-500.0,0.00045205,120]
[356779108,1743166263971,-569.03527013,0.00045205,120]
[356779109,1743166263980,-538.97409157,0.00045205,120]
[356779110,1743166263990,-500.0,0.00045205,120]
[356779111,1743166263999,-504.63203087,0.00045205,120]
[356779112,1743166264009,-500.0,0.00045205,120]
[356779113,1743166264018,-500.0,0.00045205,120]
[356779114,1743166264028,-607.91870194,0.00045205,120]
[356779115,1743166264038,-500.0,0.00045205,120]
[356779116,1743166264047,-525.99584208,0.00045205,120]
[356779117,1743166264060,-500.0,0.00045205,120]
[356779118,1743166264073,-523.53193337,0.00045205,120]
[356779119,1743166264082,-500.0,0.00045205,120]
[356779120,1743166264092,-504.13778246,0.00045205,120]
[356779121,1743166264102,-500.0,0.00045205,120]
[356779122,1743166264114,-500.0,0.00045205,120]
[356779123,1743166264124,-520.85046847,0.00045205,120]
[356779124,1743166264135,-641.46895251,0.00045205,120]
[356779125,1743166264145,-285.33962527,0.00045205,120]
[356779126,1743166264155,-500.0,0.00045205,120]
[356779127,1743166264164,-503.22163396,0.00045205,120]
[356779128,1743166264174,-521.13666003,0.00045205,120]
[356779129,1743166264185,-500.0,0.00045205,120]
[356779130,1743166264194,-500.0,0.00045205,120]
[356779131,1743166264204,-501.40988515,0.00045205,120]
[356779132,1743166264214,-500.0,0.00045205,120]
[356779133,1743166264225,-500.0,0.00045205,120]
[356779134,1743166264234,-500.0,0.00045205,120]
[356779135,1743166264245,-500.0,0.00045205,120]
[356779136,1743166264255,-500.0,0.00045205,120]
[356779137,1743166264264,-585.05770324,0.00045205,120]
[356779138,1743166264275,-500.0,0.00045205,120]
[356779139,1743166264285,-500.0,0.00045205,120]
[356779140,1743166264294,-500.0,0.00045205,120]
[356779141,1743166264304,-615.79648856,0.00045205,120]
[356779142,1743166264313,-500.0,0.00045205,120]
[356779143,1743166264323,-514.70401598,0.00045205,120]
[356779144,1743166264333,-500.0,0.00045205,120]
[356779145,1743166264343,-522.53994826,0.00045205,120]
[356779146,1743166264353,-717.47,0.00045205,2]
[356779147,1743166264363,-500.0,0.00045205,120]
[356779148,1743166264373,-717.47,0.00045205,2]
[356779149,1743166264383,-225.93514096,0.00045205,120]
[356779150,1743166264393,-717.47,0.00045205,2]
[356779151,1743166264402,-717.47,0.00045205,2]
[356779152,1743166264412,-189.21551358,0.00045205,120]
[356779153,1743166264422,-541.8163585,0.00045205,120]
[356779154,1743166264431,-717.47,0.00045205,2]
[356779155,1743166264441,-717.47,0.00045205,2]
[356779156,1743166264451,-717.47,0.00045205,2]
[356779157,1743166264461,-500.0,0.00045205,120]
[356779158,1743166264471,-717.47,0.00045205,2]
[356779159,1743166264481,-532.93691018,0.00045205,120]
[356779160,1743166264491,-516.97203827,0.00045205,120]
[356779161,1743166264622,-717.47,0.00045205,2]
[356779162,1743166264633,-717.47,0.00045205,2]
[356779163,1743166264643,-717.47,0.00045205,2]
[356779164,1743166264653,-717.47,0.00045205,2]
[356779165,1743166264663,-506.92588515,0.00045205,120]
[356779166,1743166264672,-717.47,0.00045205,2]
[356779167,1743166264682,-717.47,0.00045205,2]
[356779168,1743166264693,-717.47,0.00045205,2]
[356779169,1743166264702,-500.0,0.00045205,120]
[356779170,1743166264712,-717.47,0.00045205,2]
[356779171,1743166264723,-506.17884938,0.00045205,120]
[356779172,1743166264733,-505.91122269,0.00045205,120]
[356779173,1743166264743,-717.47,0.00045205,2]
[356779174,1743166264753,-717.47,0.00045205,2]
[356779175,1743166264764,-717.47,0.00045205,2]
[356779176,1743166264774,-717.47,0.00045205,2]
[356779177,1743166264784,-500.0,0.00045205,120]
[356779178,1743166264794,-717.47,0.00045205,2]
[356779179,1743166264804,-514.81539504,0.00045205,120]
[356779180,1743166264814,-500.0,0.00045205,120]
[356779181,1743166264823,-717.47,0.00045205,2]
[356779182,1743166264833,-717.47,0.00045205,2]
[356779183,1743166264843,-500.0,0.00045205,120]
[356779184,1743166264853,-717.63,0.00045205,2]
[356779185,1743166264862,-500.0,0.00045205,120]
[356779186,1743166264872,-595.28624267,0.00045205,120]
[356779187,1743166264881,-551.93390194,0.00045205,120]
[356779188,1743166264891,-542.33472179,0.00045205,120]
[356779189,1743166264901,-500.0,0.00045205,120]
[356779190,1743166264911,-500.0,0.00045205,120]
[356779191,1743166264921,-552.49062426,0.00045205,120]
[356779192,1743166264932,-500.0,0.00045205,120]
[356779193,1743166264942,-559.83425829,0.00045205,120]
[356779194,1743166264951,-535.97486669,0.00045205,120]
[356779195,1743166264961,-500.0,0.00045205,120]
[356779196,1743166264971,-505.63637817,0.00045205,120]
[356779197,1743166264980,-500.0,0.00045205,120]
[356779198,1743166264989,-500.0,0.00045205,120]
[356779199,1743166264999,-500.0,0.00045205,120]
[356779200,1743166265008,-505.81025094,0.00045205,120]
[356779201,1743166265017,-509.74369028,0.00045205,120]
[356779202,1743166265027,-500.0,0.00045205,120]
[356779203,1743166265036,-270.50441653,0.00045205,120]
[356779204,1743166265045,-431.22523227,0.00045205,120]
[356779205,1743166265055,-500.0,0.00045205,120]
[356779206,1743166265064,-500.0,0.00045205,120]
[356779207,1743166265075,-500.0,0.00045205,120]
[356779208,1743166265085,-500.0,0.00045205,120]
[356779209,1743166265094,-500.0,0.00045205,120]
[356779210,1743166265109,-512.57002971,0.00045205,120]
[356779211,1743166265124,-505.90950094,0.00045205,120]
[356779212,1743166265133,-520.82592997,0.00045205,120]
[356779213,1743166265143,-500.0,0.00045205,120]
[356779214,1743166265152,-500.0,0.00045205,120]
[356779215,1743166265162,-500.0,0.00045205,120]
[356779216,1743166265171,-547.885546,0.00045205,120]
[356779217,1743166265181,-508.21647179,0.00045205,120]
[356779218,1743166265190,-500.0,0.00045205,120]
[356779219,1743166265199,-500.0,0.00045205,120]
[356779220,1743166265208,-500.00027247,0.00045205,120]
[356779221,1743166265218,-531.04910893,0.00045205,120]
[356779222,1743166265227,-500.0,0.00045205,120]
[356779223,1743166265236,-544.14902144,0.00045205,120]
[356779224,1743166265246,-505.31134026,0.00045205,120]
[356779225,1743166265255,-500.0,0.00045205,120]
[356779226,1743166265264,-510.40190258,0.00045205,120]
[356779227,1743166265273,-520.17845877,0.00045205,120]
[356779228,1743166265282,-500.0,0.00045205,120]
[356779229,1743166265291,-506.1503726,0.00045205,120]
[356779230,1743166265301,-500.0,0.00045205,120]
[356779231,1743166265310,-536.85886327,0.00045205,120]
[356779232,1743166265319,-503.22404235,0.00045205,120]
[356779233,1743166265328,-508.51656582,0.00045205,120]
[356779234,1743166265338,-500.0,0.00045205,120]
[356779235,1743166265347,-500.0,0.00045205,15]
[356779236,1743166265357,-510.69163159,0.00045205,120]
[356779237,1743166265366,-531.62673307,0.00045205,120]
[356779238,1743166265376,-513.84047409,0.00045205,15]
[356779239,1743166265385,-500.0,0.00045205,120]
[356779240,1743166265395,-500.0,0.00045205,120]
[356779241,1743166265404,-561.20097492,0.00045205,120]
[356779242,1743166265413,-561.34067473,0.00045205,120]
[356779243,1743166265423,-500.0,0.00045205,120]
[356779244,1743166265432,-500.0,0.00045205,120]
[356779245,1743166265441,-559.48197937,0.00045205,120]
[356779246,1743166265451,-500.0,0.00045205,120]
[356779247,1743166265460,-500.0,0.00045205,120]
[356779248,1743166265471,-500.0,0.00045205,120]
[356779249,1743166265480,-598.13608658,0.00045205,120]
[356779250,1743166265490,-541.33609192,0.0004522,2]
[356779251,1743166265499,-150.0,0.00045257,30]
[356779252,1743166265508,-150.0,0.00045257,30]
[356779253,1743166265518,-150.0,0.00045394,30]
[356779254,1743166265527,-270.0,0.00045433,30]
[356779255,1743166265536,-162.0,0.000455,39]
[356779256,1743166265545,-162.0,0.000455,39]
[356779257,1743166265555,-162.0,0.000455,39]
[356779258,1743166265564,-162.0,0.000455,39]
[356779259,1743166265574,-594.47434007,0.00045511,30]
[356779260,1743166265583,-150.0,0.00045531,30]
[356779261,1743166265592,-1000.0,0.00045589,30]
[356779262,1743166265602,-1000.0,0.00045589,30]
[356779263,1743166265611,-150.0,0.000456,30]
[356779264,1743166265621,-150.0,0.000456,30]
[356779265,1743166265630,-150.0,0.00045669,30]
[356779266,1743166265639,-500.0,0.00045753,10]
[356779267,1743166265649,-400.0,0.0004577,3]
[356779268,1743166265658,-205.0,0.0004577,30]
[356779269,1743166265668,-205.0,0.0004577,30]
[356779270,1743166265679,-150.0,0.00045806,30]
[356779271,1743166265688,-150.0,0.00045943,30]
[356779272,1743166265698,-150.0,0.00045943,30]
[356779273,1743166265707,-50000.0,0.00046,46]
[356779274,1743166265717,-160.0,0.00046,120]
[356779275,1743166265728,-528.02,0.00046,2]
[356779276,1743166265738,-1000.0,0.00046,120]
[356779277,1743166265747,-10000.0,0.00046,20]
[356779278,1743166265757,-2687.77,0.00046,2]
[356779279,1743166265767,-150.0,0.00046,30]
[356779280,1743166265776,-153.0,0.00046027,90]
[356779281,1743166265785,-153.0,0.00046027,90]
[356779282,1743166265794,-153.0,0.00046027,90]
[356779283,1743166265803,-153.0,0.00046027,90]
[356779284,1743166265813,-153.0,0.00046027,90]
[356779285,1743166265822,-153.0,0.00046027,90]
[356779286,1743166265831,-153.0,0.00046027,90]
[356779287,1743166265840,-153.0,0.00046027,90]
[356779288,1743166265850,-2619.19793829,0.00046064,120]
[356779289,1743166265859,-150.0,0.0004608,30]
[356779290,1743166265869,-200.06797136,0.00046186,10]
[356779291,1743166265879,-193.43672273,0.0004619,2]
[356779292,1743166265888,-13047.87526612,0.0004619,2]
[356779293,1743166265897,-150.0,0.00046217,30]
[356779294,1743166265907,-465.92419974,0.0004624,2]
[356779295,1743166265916,-330.83,0.00046263,2]
[356779296,1743166265925,-1247.06014356,0.000463,120]
[356779297,1743166265935,-500.0,0.00046301,13]
[356779298,1743166265944,-150.0,0.00046354,30]
[356779299,1743166265953,-150.0,0.000464,30]
[356779300,1743166265962,-165.105,0.00046467,77]
[356779301,1743166265974,-150.0,0.00046491,30]
[356779302,1743166265984,-500.0,0.00046559,11]
[356779303,1743166265993,-500.0,0.00046575,120]
[356779304,1743166266002,-166.13752488,0.0004658,120]
[356779305,1743166266012,-166.13752488,0.0004658,120]
[356779306,1743166266022,-166.13752488,0.0004658,120]
[356779307,1743166266031,-166.13,0.0004658,120]
[356779308,1743166266041,-155.06168988,0.0004658,120]
[356779309,1743166266050,-155.06168988,0.0004658,120]
[356779310,1743166266059,-155.06168988,0.0004658,120]
[356779311,1743166266070,-155.06168988,0.0004658,120]
[356779312,1743166266079,-155.06168988,0.0004658,120]
[356779313,1743166266090,-155.06168988,0.0004658,120]
[356779314,1743166266104,-155.06168988,0.0004658,120]
[356779315,1743166266115,-155.06168988,0.0004658,120]
[356779316,1743166266124,-155.06168988,0.0004658,120]
[356779317,1743166266134,-662.10272883,0.0004658,120]
[356779318,1743166266143,-662.10272883,0.0004658,120]
[356779319,1743166266153,-662.10272883,0.0004658,120]
[356779320,1743166266162,-662.10272883,0.0004658,120]
[356779321,1743166266172,-662.10272883,0.0004658,120]
[356779322,1743166266182,-662.10272883,0.0004658,120]
[356779323,1743166266191,-662.10272883,0.0004658,120]
[356779324,1743166266201,-662.10272883,0.0004658,120]
[356779325,1743166266210,-662.10272883,0.0004658,120]
[356779326,1743166266221,-662.10272883,0.0004658,120]
[356779327,1743166266230,-662.10272883,0.0004658,120]
[356779328,1743166266240,-662.10272883,0.0004658,120]
[356779329,1743166266250,-662.10272883,0.0004658,120]
[356779330,1743166266259,-662.10272883,0.0004658,120]
[356779331,1743166266269,-662.10272883,0.0004658,120]
[356779332,1743166266278,-662.10272883,0.0004658,120]
[356779333,1743166266287,-662.10272883,0.0004658,120]
[356779334,1743166266296,-662.10272883,0.0004658,120]
[356779335,1743166266306,-662.10272883,0.0004658,120]
[356779336,1743166266316,-662.1,0.0004658,120]
[356779337,1743166266326,-1544.90636728,0.0004658,120]
[356779338,1743166266336,-1544.90636728,0.0004658,120]
[356779339,1743166266346,-1544.90636728,0.0004658,120]
[356779340,1743166266355,-1544.90636728,0.0004658,120]
[356779341,1743166266364,-1544.90636728,0.0004658,120]
[356779342,1743166266374,-1544.90636728,0.0004658,120]
[356779343,1743166266384,-1544.90636728,0.0004658,120]
[356779344,1743166266393,-1544.90636728,0.0004658,120]
[356779345,1743166266403,-1544.90636728,0.0004658,120]
[356779346,1743166266412,-1544.90636728,0.0004658,120]
[356779347,1743166266422,-1544.90636728,0.0004658,120]
[356779348,1743166266431,-1544.90636728,0.0004658,120]
[356779349,1743166266441,-1544.90636728,0.0004658,120]
[356779350,1743166266451,-1544.90636728,0.0004658,120]
[356779351,1743166266460,-1544.90636728,0.0004658,120]
[356779352,1743166266470,-1544.90636728,0.0004658,120]
[356779353,1743166266479,-1544.90636728,0.0004658,120]
[356779354,1743166266490,-1544.90636728,0.0004658,120]
[356779355,1743166266499,-281.80572985,0.0004658,120]
[356779356,1743166266514,-281.80572985,0.0004658,120]
[356779357,1743166266524,-281.80572985,0.0004658,120]
[356779358,1743166266533,-281.80572985,0.0004658,120]
[356779359,1743166266543,-281.80572985,0.0004658,120]
[356779360,1743166266552,-281.80572985,0.0004658,120]
[356779361,1743166266562,-281.80572985,0.0004658,120]
[356779362,1743166266572,-281.80572985,0.0004658,120]
[356779363,1743166266581,-281.80572985,0.0004658,120]
[356779364,1743166266591,-281.80572985,0.0004658,120]
[356779365,1743166266601,-281.80572985,0.0004658,120]
[356779366,1743166266708,-281.80572985,0.0004658,120]
[356779367,1743166266719,-281.80572985,0.0004658,120]
[356779368,1743166266730,-281.80572985,0.0004658,120]
[356779369,1743166266740,-281.80572985,0.0004658,120]
[356779370,1743166266750,-281.80572985,0.0004658,120]
[356779371,1743166266760,-281.80572985,0.0004658,120]
[356779372,1743166266770,-281.80572985,0.0004658,120]
[356779373,1743166266780,-281.80572985,0.0004658,120]
[356779374,1743166266789,-281.8,0.0004658,120]
[356779375,1743166266799,-657.54670299,0.0004658,120]
[356779376,1743166266808,-657.54670299,0.0004658,120]
[356779377,1743166266818,-657.54670299,0.0004658,120]
[356779378,1743166266827,-657.54670299,0.0004658,120]
[356779379,1743166266838,-657.54670299,0.0004658,120]
[356779380,1743166266848,-657.54670299,0.0004658,120]
[356779381,1743166266857,-657.54670299,0.0004658,120]
[356779382,1743166266866,-657.54670299,0.0004658,120]
[356779383,1743166266875,-657.54670299,0.0004658,120]
[356779384,1743166266884,-657.54670299,0.0004658,120]
[356779385,1743166266893,-657.54670299,0.0004658,120]
[356779386,1743166266903,-657.54670299,0.0004658,120]
[356779387,1743166266912,-657.54670299,0.0004658,120]
[356779388,1743166266922,-657.54670299,0.0004658,120]
[356779389,1743166266931,-657.54670299,0.0004658,120]
[356779390,1743166266942,-657.54670299,0.0004658,120]
[356779391,1743166266951,-657.54670299,0.0004658,120]
[356779392,1743166266960,-657.54670299,0.0004658,120]
[356779393,1743166266970,-150.0,0.00046629,30]
[356779394,1743166266982,-150.0,0.00046629,30]
[356779395,1743166266996,-667.83,0.00046645,90]
[356779396,1743166267006,-152.0,0.0004668,4]
[356779397,1743166267016,-150.0,0.00046766,30]
[356779398,1743166267026,-150.0,0.000468,30]
[356779399,1743166267035,-150.0,0.000468,30]
[356779400,1743166267045,-500.0,0.00046849,16]
[356779401,1743166267057,-205.0,0.0004689,30]
[356779402,1743166267072,-205.0,0.0004689,30]
[356779403,1743166267082,-205.0,0.0004689,30]
[356779404,1743166267092,-150.0,0.00046903,30]
[356779405,1743166267103,-1544.90636728,0.00046926,120]
[356779406,1743166267115,-657.54670299,0.00046926,120]
[356779407,1743166267125,-50000.0,0.00047,47]
[356779408,1743166267135,-1000.0,0.00047,2]
[356779409,1743166267145,-204.71751162,0.00047,120]
[356779410,1743166267155,-150.0,0.0004704,30]
[356779411,1743166267165,-206.75351,0.00047169,120]
[356779412,1743166267175,-150.0,0.00047177,30]
[356779413,1743166267187,-150.0,0.000472,30]
[356779414,1743166267197,-12000.0,0.0004725,8]
[356779415,1743166267207,-150.0,0.00047314,30]
[356779416,1743166267217,-150.0,0.00047314,30]
[356779417,1743166267227,-500.0,0.00047397,19]
[356779418,1743166267237,-155.06,0.000474,120]
[356779419,1743166267247,-1544.9,0.000474,120]
[356779420,1743166267257,-657.54,0.000474,120]
[356779421,1743166267267,-150.0,0.00047451,30]
[356779422,1743166267277,-2909.7304138,0.00047467,2]
[356779423,1743166267287,-3567.7884902,0.00047467,2]
[356779424,1743166267297,-468.55793411,0.000475,120]
[356779425,1743166267306,-875431.20599516,0.000475,120]
[356779426,1743166267508,-344.3766,0.00045205,14]
[356779427,1743166267518,-132.27921347,0.000475,120]
[356779428,1743166267529,-808.45400549,0.000475,120]
[356779429,1743166267541,-411.67000296,0.000475,120]
[356779435,1743166785597,-168.12720779,0.00014973,2]
[356779436,1743166785619,-309.1920848,0.00031,30]
[356779437,1743166785641,-502.1229372,0.000318,2]
[356779438,1743166785828,-8500.0,0.00041936,11]
[356779439,1743166785851,-8500.0,0.00041945,11]
[356779440,1743166785873,-8500.0,0.00041954,11]
[356779441,1743166785895,-150.0,0.00041961,4]
[356779442,1743166785916,-175.764,0.00041961,62]
[356779443,1743166785938,-8500.0,0.00041962,11]
[356779444,1743166785960,-8500.0,0.00041971,11]
[356779445,1743166785981,-8500.0,0.0004198,11]
[356779446,1743166786003,-165.41,0.00043782,2]
[356779447,1743166808834,-201.21,0.00044192,2]
[356779448,1743166815241,151.0,0.00042665,2]
[356779449,1743166854179,907.0,0.00042786,30]
[356779450,1743166854288,907.0,0.00043227,30]
[356779451,1743166854380,907.0,0.00043668,30]
[356779452,1743166854711,907.0,0.0004411,30]
[356779453,1743166854743,907.0,0.00044551,30]
[356779454,1743166854792,907.0,0.00044992,30]
[356779455,1743166889002,308.96857795,0.0004411,30]
[356779456,1743166897012,35000.0,0.00045,2]
[356779457,1743166932553,880.68569226,0.00035,30]
[356779458,1743167025953,-673.27865603,0.00034899,2]
[356779459,1743167025977,-89652.9600177,0.0003499,2]
[356779460,1743167026001,-168.5663326,0.00034999,7]
[356779461,1743167026024,-181.28249379,0.00034999,7]
[356779462,1743167026046,-499119.31430774,0.00035,30]
[356779463,1743167026068,-673.27865603,0.00039967,2]
[356779464,1743167026090,-673.27865603,0.00045035,2]
[356779465,1743167026112,-214.72,0.00045135,120]
[356779466,1743167026134,-206.75351,0.00045172,120]
[356779467,1743167026156,-14942.160003,0.0004519,3]
[356779468,1743167026177,-15862.61769931,0.000452,2]
[356779469,1743167026199,-500.0,0.00045205,120]
[356779470,1743167026223,-534.93309792,0.00045205,120]
[356779471,1743167026244,-500.0,0.00045205,120]
[356779472,1743167026266,-500.0,0.00045205,120]
[356779473,1743167026287,-447.72056748,0.00045205,120]
[356779474,1743167026309,-500.0,0.00045205,7]
[356779475,1743167026330,-683.46,0.00045377,2]
[356779476,1743167026354,-907.0,0.00045433,30]
[356779477,1743167026376,-792.65,0.00045732,120]
[356779478,1743167026397,-500.0,0.00045753,10]
[356779479,1743167026418,-200.0,0.00045836,2]
[356779480,1743167026442,-205.0,0.0004585,30]
[356779483,1743167057378,55885.32575648,0.00044,4]
[356779484,1743167075405,550.31801643,0.00045205,120]
[356779485,1743167080126,339.95094297,0.0004594,2]
[356779486,1743167098958,500.0,0.00045205,120]
[356779487,1743167099238,500.0,0.00045205,120]
[356779488,1743167099478,500.0,0.00045205,120]
[356779489,1743167099730,500.0,0.00045205,120]
[356779490,1743167099994,500.0,0.00045205,120]
[356779491,1743167100367,500.0,0.00045205,120]
[356779492,1743167100647,500.0,0.00045205,120]
[356779493,1743167100888,500.0,0.00045205,120]
[356779494,1743167101284,620.07709091,0.00045205,120]
[356779495,1743167114288,504.45,0.00044444,2]
[356779496,1743167202884,258.78581667,0.00046,2]
[356779497,1743167215032,500.0994,0.000318,2]
[356779498,1743167228745,-153.0,0.00046027,90]
[356779499,1743167228768,-29884.3200059,0.00046036,3]
[356779500,1743167228792,-150.0,0.0004604,7]
[356779501,1743167228815,-161.5085555,0.00046042,4]
[356779502,1743167228838,-999.99,0.00046046,2]
[356779503,1743167228861,-42606.66,0.00046046,30]
[356779504,1743167228884,-165.41,0.00046046,2]
[356779505,1743167228908,-1000.0,0.00046184,2]
[356779506,1743167228930,-500.0,0.00046184,2]
[356779507,1743167228952,-171.24,0.00046247,2]
[356779508,1743167228974,-150.99,0.00046247,2]
[356779509,1743167228996,-500.0,0.00046301,13]
[356779510,1743167229019,-173.39,0.00046395,2]
[356779511,1743167229041,-6980.37,0.00046445,2]
[356779512,1743167229064,-268.3,0.00046467,120]
[356779513,1743167235963,100267.84041751,0.00046,30]
[356779515,1743167431432,-158.83,0.00026849,2]
[356779516,1743167431443,-150.72,0.0004199,2]
[356779517,1743167431452,-105.6690424,0.0004199,2]
[356779518,1743167431463,-45.0509576,0.0004199,2]
[356779519,1743167431473,-22464.55639015,0.00042,30]
[356779520,1743167431552,-425.8,0.00042,30]
[356779521,1743167431612,-321477.74381119,0.00042,30]
[356779522,1743167431623,-420.7394915,0.00042,30]
[356779523,1743167431666,-3786.05293,0.00042,30]
[356779524,1743167431724,-449.32685517,0.00042,30]
[356779525,1743167431736,-420.816,0.00042,30]
[356779539,1743167437307,-8784.9,0.00042,30]
[356779540,1743167437417,-5219.51402086,0.00042,30]
[356779541,1743167437430,-31124.33913157,0.00042,30]
[356779542,1743167437473,-537.13002854,0.00042,30]
[356779561,1743167439599,-1375.606,0.00042,30]
[356779562,1743167439766,-32544.52041238,0.00042,30]
[356779563,1743167439778,-1812.61514686,0.00042,30]
[356779564,1743167439795,-5765.74704809,0.00042,30]